bitfinex/quotes_ETHUSD_20241123
["timestamp","ask_amount","ask_price","bid_price","bid_amount"]
[1732380934315,1.36270286,3411.9,3410.4,0.18277599]
[1732380934650,1.36270286,3411.9,3410.5,0.44355992]
[1732380935252,1.3288,3411.9,3410.6,1.44431628]
[1732380935556,0.03390286,3411.8,3410.7,0.20706522]
[1732380936365,1.2288,3411.9,3410.7,0.20706522]
[1732380936366,0.1488394,3412.1,3410.8,0.02931424]
[1732380936690,0.1488394,3412.1,3410.9,0.20949394]
[1732380936949,0.1488394,3412.1,3411.0,1.415]
[1732380938014,0.1488394,3412.1,3411.1,0.02931253]
[1732380938217,0.1488394,3412.1,3411.0,1.415]
[1732380939151,0.03390286,3412.0,3411.0,1.415]
[1732380939319,0.1488394,3412.1,3411.0,1.415]
[1732380939651,0.03390286,3412.0,3411.0,1.415]
[1732380939828,0.1488394,3412.1,3411.0,1.415]
[1732380940033,0.1488394,3412.1,3411.0,1.85855992]
[1732380940231,0.03390286,3412.0,3411.0,1.60378742]
[1732380940564,0.13116677,3412.1,3411.0,1.60378742]
[1732380940918,0.13116677,3412.1,3411.1,0.02931282]
[1732380941124,0.13116677,3412.1,3411.2,0.20766602]
[1732380942944,0.13116677,3412.1,3411.4,1.415]
[1732380943829,0.13116677,3412.1,3411.5,0.2924]
[1732380944961,0.13116677,3412.1,3411.4,1.415]
[1732380945935,1.46926677,3412.1,3411.4,1.415]
[1732380946431,0.13116677,3412.1,3411.4,1.415]
[1732380947030,0.13116677,3412.1,3410.6,1.415]
[1732380947230,0.13116677,3412.1,3410.7,0.02931183]
[1732380947560,0.13116677,3412.1,3410.6,1.415]
[1732380947561,0.13116677,3412.1,3410.6,1.7074]
[1732380947935,1.3381,3412.0,3410.6,1.415]
[1732380948172,0.14692668,3411.9,3410.6,1.415]
[1732380948682,0.55,3411.8,3410.6,1.415]
[1732380949368,0.55,3411.6,3410.1,1.2859]
[1732380949746,1.4045,3411.7,3410.1,1.72945992]
[1732380950268,1.4045,3411.7,3410.2,0.44355992]
[1732380950431,1.4045,3411.7,3410.1,1.25004773]
[1732380951070,1.4045,3411.7,3410.1,1.69360765]
[1732380951267,1.4045,3411.7,3410.2,0.16936077]
[1732380951468,1.4045,3411.7,3410.2,0.44355992]
[1732380951861,1.4045,3412.0,3410.3,0.57931742]
[1732380952057,1.4045,3412.0,3410.4,0.44355992]
[1732380952376,0.13116677,3412.1,3410.5,0.57931514]
[1732380952537,0.13116677,3412.1,3410.7,0.55]
[1732380952856,0.13116677,3412.1,3410.8,0.6593987]
[1732380953239,0.13116677,3412.1,3410.9,1.2859]
[1732380953478,0.13116677,3412.1,3411.0,1.72945992]
[1732380953749,0.13116677,3412.1,3411.1,1.2859]
[1732380953970,0.13116677,3412.1,3411.4,1.5783]
[1732380954648,0.13116677,3412.1,3411.4,2.02185992]
[1732380954976,0.13116677,3412.1,3411.4,1.5783]
[1732380960274,0.13116677,3412.1,3411.2,0.2924]
[1732380960479,0.13116677,3412.1,3411.4,0.2924]
[1732380961071,1.3311,3412.0,3410.6,1.3125]
[1732380961280,1.3311,3412.0,3410.7,0.44355992]
[1732380961448,1.3311,3412.0,3410.8,0.17560599]
[1732380961842,1.3311,3412.0,3410.6,1.3125]
[1732380962151,1.3311,3412.0,3410.7,0.2921]
[1732380962347,1.3311,3412.0,3410.7,0.73565992]
[1732380962649,1.3311,3412.0,3410.7,0.2921]
[1732380963746,1.3311,3411.9,3410.3,1.3125]
[1732380963946,1.3311,3411.7,3410.3,1.3125]
[1732380964352,0.55,3411.6,3410.3,1.3125]
[1732380964973,1.3311,3411.7,3410.3,1.3125]
[1732380966284,1.3311,3411.5,3410.2,0.47039326]
[1732380966587,1.3311,3411.5,3410.3,1.3125]
[1732380968533,1.3311,3411.5,3410.4,0.49405992]
[1732380968788,1.3311,3411.5,3410.5,0.18065599]
[1732380969085,1.3311,3411.5,3410.5,0.67471591]
[1732380969544,1.29714611,3411.5,3410.3,1.3125]
[1732380970143,1.29714611,3411.5,3409.9,1.2513]
[1732380970883,0.55,3411.4,3409.9,1.2513]
[1732380971378,0.55,3411.4,3409.5,1.2513]
[1732380971750,0.54223197,3411.4,3409.5,1.2513]
[1732380972477,1.3118,3411.3,3409.5,1.2513]
[1732380972676,1.3118,3411.1,3409.5,1.2513]
[1732380973586,1.3118,3411.1,3409.1,0.2921]
[1732380973755,0.55,3411.2,3409.1,0.2921]
[1732380973956,0.54223197,3411.4,3409.1,0.2921]
[1732380973957,1.3118,3410.9,3409.1,0.2921]
[1732380974156,1.3118,3410.7,3409.1,0.44644]
[1732380975083,0.55,3410.6,3409.1,0.44644]
[1732380975767,0.55,3410.4,3409.1,0.44644]
[1732380976598,0.55,3410.2,3409.1,0.44644]
[1732380976815,1.3118,3410.1,3408.7,0.2921]
[1732380979229,0.55,3410.0,3408.7,0.2921]
[1732380979532,0.55,3410.0,3408.6,1.2513]
[1732380979533,0.55,3409.8,3408.9,0.2921]
[1732380979918,0.55,3409.6,3408.9,0.2921]
[1732380980657,0.55,3409.6,3409.0,0.2921]
[1732380980658,1.2406,3409.5,3409.0,0.2921]
[1732380980954,0.55,3409.2,3408.1,1.3627]
[1732380981316,0.55,3409.2,3408.2,0.2921]
[1732380981920,1.2406,3409.9,3408.2,0.2921]
[1732380982121,1.2406,3409.9,3408.5,0.2921]
[1732380982366,1.2406,3409.9,3408.5,2.97796571]
[1732380982524,1.2406,3411.6,3408.9,0.2921]
[1732380982854,1.2406,3411.6,3408.9,0.32143024]
[1732380983162,1.2406,3411.6,3408.9,0.2921]
[1732380983361,0.1,3411.5,3408.9,0.2921]
[1732380983560,1.3406,3411.0,3408.4,0.2921]
[1732380983742,1.2406,3410.8,3408.5,0.16548]
[1732380983921,1.7906,3410.5,3408.6,0.2921]
[1732380984261,0.55,3410.1,3408.6,0.2921]
[1732380984574,0.55,3410.3,3408.6,0.2921]
[1732380984575,1.2406,3410.2,3408.6,0.2921]
[1732380984726,0.55,3409.8,3408.6,0.2921]
[1732380984925,0.55,3409.6,3408.4,0.2921]
[1732380987231,0.55,3409.6,3408.4,0.2421]
[1732380987460,0.55,3409.4,3408.4,0.2421]
[1732380988758,0.55,3409.2,3407.9,1.2712]
[1732380988926,1.2514,3408.9,3407.2,1.2712]
[1732380989127,0.55,3408.8,3407.2,1.2712]
[1732380989325,0.55,3408.6,3407.2,1.2712]
[1732380989568,0.55,3408.4,3407.2,1.2712]
[1732380989926,0.55,3408.4,3407.3,0.2921]
[1732380992271,0.55,3408.2,3407.3,0.2921]
[1732380993966,1.2514,3408.3,3407.2,1.2712]
[1732380994135,1.2514,3409.3,3407.2,1.2712]
[1732380994343,1.2514,3409.0,3407.2,1.2712]
[1732380994776,0.55,3408.9,3407.2,1.2712]
[1732380994943,0.55,3408.7,3407.2,1.2712]
[1732380995131,0.55,3408.5,3407.2,1.2712]
[1732380995667,0.55,3408.3,3407.2,1.2712]
[1732380995888,1.2514,3408.0,3406.0,1.2712]
[1732380996035,0.55,3407.9,3406.0,1.2712]
[1732380996230,0.55,3407.7,3406.0,1.2712]
[1732380996432,0.55,3407.3,3406.0,1.2712]
[1732380997179,1.2514,3407.2,3406.0,1.2712]
[1732380997325,0.55,3407.1,3406.0,1.2712]
[1732380998826,0.55,3407.1,3405.0,1.2712]
[1732380999027,0.18014,3407.0,3405.2,1.2712]
[1732380999231,1.8014,3406.9,3405.2,1.2712]
[1732381001044,1.2514,3406.8,3405.2,1.2712]
[1732381001242,0.55,3406.7,3405.2,1.2712]
[1732381001948,1.2514,3406.8,3405.2,1.2712]
[1732381002155,1.2514,3406.8,3405.3,1.2712]
[1732381003252,1.2514,3406.6,3405.3,1.2712]
[1732381003471,0.55,3406.5,3405.3,1.2712]
[1732381004969,1.2514,3406.4,3404.2,1.2712]
[1732381005176,0.73014,3406.3,3404.4,1.2712]
[1732381005476,0.55,3406.1,3404.4,1.2712]
[1732381005686,1.2514,3406.0,3404.4,1.2712]
[1732381005839,0.55,3405.9,3404.4,1.2712]
[1732381006236,1.2514,3405.8,3404.4,1.2712]
[1732381006470,0.55,3405.7,3404.4,1.2712]
[1732381006670,0.55,3405.5,3404.4,1.2712]
[1732381006983,0.55,3405.3,3403.5,1.2712]
[1732381008057,0.55,3405.1,3403.5,1.2712]
[1732381008386,0.55,3404.9,3403.5,1.2712]
[1732381008542,0.55,3404.7,3403.5,1.2712]
[1732381009357,0.55,3404.5,3403.5,1.2712]
[1732381009964,0.55,3404.5,3402.9,1.2184]
[1732381009965,1.2426,3404.4,3402.9,1.2184]
[1732381010160,8.89,3405.5,3402.9,1.2184]
[1732381010161,0.55,3404.1,3402.9,1.2184]
[1732381010772,0.55,3404.1,3402.0,0.0470597]
[1732381010773,0.55,3403.7,3402.1,1.2184]
[1732381011746,0.55,3403.5,3402.1,1.2184]
[1732381011989,0.55,3403.3,3402.1,1.2184]
[1732381013166,1.2426,3403.6,3402.1,1.2184]
[1732381013367,0.55,3403.5,3402.1,1.2184]
[1732381014287,0.55,3403.3,3402.1,1.2184]
[1732381014754,0.55,3403.1,3402.0,0.01767263]
[1732381015146,0.55,3402.9,3402.0,0.01767263]
[1732381015340,1.2426,3402.8,3402.0,0.01767263]
[1732381015566,0.55,3402.6,3402.0,0.01767263]
[1732381016180,1.2426,3402.8,3402.0,0.01767263]
[1732381016846,1.7926,3403.9,3402.1,1.2184]
[1732381017071,0.55,3403.7,3402.1,1.2184]
[1732381017459,0.55,3403.8,3402.1,1.2184]
[1732381017802,1.2426,3403.9,3402.2,0.02939223]
[1732381017958,1.2426,3403.9,3402.3,1.2184]
[1732381018161,1.2426,3403.9,3402.4,1.2184]
[1732381018392,1.2426,3405.5,3402.5,0.02938457]
[1732381018595,1.2426,3405.0,3402.6,1.2184]
[1732381018895,1.2426,3404.8,3402.6,1.2184]
[1732381020768,0.55,3404.7,3402.6,1.2184]
[1732381021153,0.55,3404.5,3402.6,1.2184]
[1732381021664,1.2426,3404.4,3402.6,1.2184]
[1732381022399,0.55,3404.3,3402.6,1.2184]
[1732381023876,0.55,3404.3,3402.7,0.2921]
[1732381024075,0.55,3404.1,3402.7,0.2921]
[1732381024812,0.55,3404.1,3402.7,0.28611]
[1732381025790,0.55,3403.9,3402.7,0.28611]
[1732381026783,1.2426,3404.0,3402.8,1.49852]
[1732381026982,1.2426,3405.0,3403.1,0.28012]
[1732381027207,2.4316,3405.0,3403.1,0.28012]
[1732381027515,1.2426,3405.0,3403.1,0.30949873]
[1732381027813,1.316,3406.1,3403.4,0.28012]
[1732381028000,1.316,3406.1,3403.6,0.28012]
[1732381029024,1.316,3406.1,3403.7,0.02937643]
[1732381029196,1.316,3406.1,3403.8,0.28012]
[1732381029388,1.316,3406.1,3403.9,0.0293706]
[1732381029615,1.316,3406.1,3404.1,0.28012]
[1732381030126,1.416,3406.1,3404.1,0.28012]
[1732381030440,0.55,3406.0,3404.1,0.28012]
[1732381030577,1.316,3405.7,3404.1,0.27894]
[1732381030779,1.316,3405.7,3404.1,0.433874]
[1732381031122,3.0,3406.9,3404.1,0.433874]
[1732381031123,1.316,3406.9,3404.5,0.27776]
[1732381031478,1.316,3406.9,3404.7,0.27776]
[1732381031684,1.316,3406.9,3404.7,0.30713036]
[1732381031906,1.316,3406.9,3404.9,0.27776]
[1732381032281,1.316,3406.9,3404.8,1.2704]
[1732381032282,1.316,3406.9,3405.1,0.27776]
[1732381033817,1.316,3406.9,3404.9,1.2704]
[1732381035108,1.316,3406.9,3405.0,0.02936265]
[1732381035425,1.3396,3407.2,3405.2,1.2351]
[1732381035602,1.3396,3407.2,3405.4,1.2351]
[1732381035945,1.3396,3407.2,3405.6,1.2351]
[1732381036627,1.3396,3407.2,3405.7,0.55]
[1732381036829,1.3396,3407.2,3405.6,1.2351]
[1732381037734,1.3396,3407.2,3405.7,0.34584573]
[1732381037937,1.3396,3407.2,3405.6,1.2351]
[1732381039433,1.3396,3407.2,3405.8,1.2351]
[1732381039635,1.3396,3408.6,3405.9,0.3524374]
[1732381039801,1.3396,3408.6,3406.4,1.2351]
[1732381040002,1.3396,3408.6,3406.6,1.2351]
[1732381041546,0.1,3408.8,3406.6,1.2351]
[1732381041547,1.8896,3408.7,3406.6,1.2351]
[1732381041714,0.55,3408.5,3406.6,1.2351]
[1732381041918,1.3396,3408.2,3406.6,1.2351]
[1732381042232,0.55,3408.1,3406.6,1.2351]
[1732381042614,1.3396,3408.0,3406.6,1.2351]
[1732381042809,0.55,3407.9,3406.6,1.2351]
[1732381043038,0.55,3407.7,3406.6,1.2351]
[1732381043835,0.55,3407.7,3406.7,0.2921]
[1732381044475,0.18896,3407.8,3406.7,0.2921]
[1732381044858,1.3396,3408.4,3407.1,0.2921]
[1732381045044,1.3396,3408.7,3407.3,0.2921]
[1732381045249,2.2286,3408.7,3407.3,0.2921]
[1732381045459,1.3396,3408.7,3407.3,0.2921]
[1732381046165,1.3396,3408.7,3407.2,1.2351]
[1732381046166,1.3396,3408.7,3407.4,0.2921]
[1732381046473,1.3396,3408.7,3407.5,1.5272]
[1732381046849,1.3396,3409.1,3407.5,1.5272]
[1732381048048,0.55,3409.0,3407.5,1.5272]
[1732381048257,1.2927,3409.9,3407.6,0.02934372]
[1732381048578,1.2927,3409.9,3408.0,0.2921]
[1732381048749,1.2927,3409.9,3408.1,1.2981]
[1732381049074,0.18543871,3409.8,3408.1,1.2981]
[1732381049277,1.2927,3409.7,3408.1,1.2981]
[1732381049481,0.55,3409.6,3408.1,1.2981]
[1732381050173,1.2927,3409.7,3408.1,1.2981]
[1732381052374,0.55,3409.6,3408.1,1.2981]
[1732381052565,0.55,3409.4,3408.1,1.2981]
[1732381052767,0.20281387,3409.5,3408.1,1.2981]
[1732381052979,0.20281387,3409.5,3407.8,1.2981]
[1732381053390,0.55,3409.4,3407.8,1.2981]
[1732381053772,1.2927,3409.3,3407.8,1.2981]
[1732381053962,0.55,3409.1,3407.8,1.2981]
[1732381054270,0.55,3408.9,3406.6,1.2981]
[1732381054473,0.55,3408.7,3406.6,1.2981]
[1732381057309,0.23927,3408.8,3406.6,1.2981]
[1732381057467,0.23927,3408.8,3406.9,0.2921]
[1732381057665,0.23927,3408.8,3407.0,1.5838]
[1732381057997,0.23927,3408.8,3406.5,3.01120525]
[1732381057998,1.3035,3409.4,3407.2,1.5838]
[1732381059270,0.55,3409.3,3407.2,1.5838]
[1732381060020,0.55,3409.1,3407.2,1.5838]
[1732381060180,0.55,3408.9,3407.2,1.5838]
[1732381060381,0.18535,3409.0,3407.2,1.5838]
[1732381061331,0.55,3408.9,3407.2,1.5838]
[1732381062213,1.3035,3408.8,3407.2,1.5838]
[1732381062413,0.55,3408.7,3407.2,1.5838]
[1732381062621,0.55,3408.5,3407.2,1.5838]
[1732381063279,0.48535,3408.6,3407.2,1.5838]
[1732381063485,0.55,3408.7,3407.2,1.2917]
[1732381064023,1.3035,3408.6,3407.2,1.2917]
[1732381064330,0.55,3408.3,3407.2,1.2917]
[1732381064626,1.3035,3408.0,3405.9,1.2917]
[1732381064785,0.55,3407.9,3405.9,1.2917]
[1732381064976,0.55,3407.7,3405.9,1.2917]
[1732381065418,0.55,3407.7,3406.0,1.61703954]
[1732381065620,0.55,3407.7,3406.1,1.2917]
[1732381067980,0.55,3407.7,3406.2,1.2925]
[1732381068226,0.18535,3407.8,3406.3,1.2925]
[1732381068525,0.18535,3407.8,3406.4,1.2925]
[1732381068686,1.2622,3408.3,3406.4,1.2925]
[1732381069504,0.55,3408.2,3406.4,1.2925]
[1732381070215,0.55,3408.2,3406.5,1.2925]
[1732381070427,0.55,3408.2,3406.6,1.2925]
[1732381070630,1.2622,3408.3,3406.6,1.2925]
[1732381070631,0.55,3408.0,3406.6,1.2925]
[1732381070830,0.55,3408.0,3406.7,0.34909312]
[1732381071004,0.55,3408.2,3406.8,0.34909312]
[1732381071333,0.55,3408.2,3406.9,0.34909312]
[1732381071525,0.55,3408.0,3407.0,0.34909312]
[1732381071743,0.55,3408.0,3406.6,1.2925]
[1732381071744,0.55,3408.0,3407.1,0.34909312]
[1732381071902,0.55,3408.0,3407.2,0.34909312]
[1732381072252,0.55,3408.0,3407.3,0.34909312]
[1732381072453,0.55,3408.0,3407.4,0.34909312]
[1732381072617,0.55,3408.0,3407.5,0.34909312]
[1732381072809,0.55,3408.0,3407.6,0.34909312]
[1732381073007,0.55,3408.0,3407.7,0.34909312]
[1732381073228,0.55,3408.0,3407.8,0.34909312]
[1732381073407,0.55,3408.0,3407.0,1.2925]
[1732381073608,0.55,3407.8,3406.3,1.2925]
[1732381073913,0.55,3407.6,3406.3,1.2925]
[1732381076642,0.55,3407.4,3406.0,0.2921]
[1732381076838,0.55,3407.2,3405.9,1.2992]
[1732381077542,0.55,3407.2,3406.0,0.2921]
[1732381077757,0.55,3407.2,3406.2,0.2921]
[1732381080024,0.55,3407.2,3406.1,1.2992]
[1732381080232,0.55,3407.2,3406.2,0.2921]
[1732381081160,0.55,3407.2,3405.7,0.34792871]
[1732381081161,0.55,3406.8,3405.3,0.38691302]
[1732381081462,0.55,3406.8,3404.9,1.2992]
[1732381081463,0.55,3406.4,3404.9,1.2992]
[1732381081619,1.2842,3406.3,3404.9,1.2992]
[1732381081821,0.55,3406.2,3404.9,1.2992]
[1732381084056,1.2842,3406.9,3405.1,1.2992]
[1732381084352,1.2842,3407.9,3405.3,1.2992]
[1732381084559,10.1742,3407.9,3405.3,1.2992]
[1732381084970,10.1742,3407.9,3405.5,1.2992]
[1732381084971,1.2842,3407.9,3405.5,1.2992]
[1732381085202,1.2842,3407.9,3405.7,1.2992]
[1732381085463,1.2842,3407.9,3405.6,2.71522009]
[1732381085464,1.2842,3408.8,3406.1,1.2992]
[1732381085658,1.2842,3408.8,3406.5,1.2992]
[1732381085865,1.2842,3408.8,3406.6,1.93100575]
[1732381086027,1.2842,3408.8,3406.7,1.2992]
[1732381086222,1.2842,3408.8,3407.1,0.2921]
[1732381086465,1.2842,3408.8,3406.0,2.68586571]
[1732381086466,1.2842,3409.6,3407.5,0.2921]
[1732381088779,1.2842,3409.6,3407.4,1.2992]
[1732381089637,0.55,3409.5,3407.4,1.2992]
[1732381089844,0.55,3409.6,3407.4,1.2992]
[1732381090165,0.55,3409.2,3407.4,1.2992]
[1732381090474,0.55,3408.8,3407.4,1.2992]
[1732381090635,0.55,3408.8,3405.3,0.2]
[1732381090636,1.2554,3408.7,3405.7,1.237]
[1732381090944,0.55,3408.4,3405.7,1.237]
[1732381091148,0.55,3408.2,3405.7,1.237]
[1732381091665,1.2554,3408.6,3405.7,1.237]
[1732381091864,0.55,3408.3,3405.7,1.237]
[1732381092066,0.55,3408.1,3405.7,1.237]
[1732381092567,0.55,3408.1,3405.8,1.237]
[1732381094057,0.55,3408.1,3405.9,1.237]
[1732381094490,0.55,3408.1,3406.0,1.237]
[1732381094702,0.55,3408.1,3406.1,1.237]
[1732381098917,0.55,3408.1,3406.2,1.2952]
[1732381099991,0.55,3408.1,3406.2,1.2952]
[1732381100692,0.18054,3408.2,3406.3,1.32455429]
[1732381100991,0.18054,3408.2,3406.3,1.61343428]
[1732381101204,0.18054,3408.2,3406.4,1.8041295]
[1732381101372,1.2123,3408.8,3406.4,1.2952]
[1732381102393,0.55,3408.7,3406.4,1.2952]
[1732381103300,0.55,3408.5,3406.4,1.2952]
[1732381103503,0.55,3408.3,3406.4,1.2952]
[1732381103709,0.17623,3408.4,3406.5,1.32455183]
[1732381103906,1.2123,3409.5,3406.6,1.2952]
[1732381104128,1.2123,3409.9,3407.2,1.2952]
[1732381104331,1.2123,3410.4,3407.4,1.2952]
[1732381104518,1.2123,3410.4,3407.6,1.2952]
[1732381104833,1.2123,3410.4,3407.6,1.61760094]
[1732381105002,1.2123,3410.4,3407.8,1.2467]
[1732381105219,1.2123,3410.4,3407.9,1.2467]
[1732381105527,1.2123,3410.4,3408.0,1.2467]
[1732381105726,1.2123,3410.4,3408.0,0.34073428]
[1732381106019,1.2123,3410.4,3408.2,1.2467]
[1732381106328,1.2123,3410.4,3408.3,1.43913846]
[1732381106686,1.2123,3410.4,3408.4,1.2467]
[1732381107101,1.2123,3410.4,3408.5,1.1818]
[1732381107305,1.2123,3410.4,3408.6,1.1818]
[1732381107832,0.55,3410.3,3408.6,1.1818]
[1732381107998,0.55,3410.1,3408.8,1.1818]
[1732381112352,1.2298,3410.8,3408.8,1.1818]
[1732381112553,3.0,3411.1,3408.9,1.2111327]
[1732381112764,10.1198,3411.2,3409.0,1.1818]
[1732381112765,1.2298,3411.2,3409.0,1.1818]
[1732381113261,10.1198,3411.6,3409.2,1.1818]
[1732381113459,10.1198,3411.6,3409.2,1.56336761]
[1732381113636,1.01198,3411.5,3409.3,1.1818]
[1732381114384,1.01198,3411.5,3409.4,1.1818]
[1732381114657,1.2298,3411.6,3409.5,1.1818]
[1732381115637,0.55,3411.5,3409.5,1.1818]
[1732381116082,0.55,3411.5,3409.6,1.1818]
[1732381116496,0.55,3411.5,3409.7,1.1818]
[1732381116653,0.17798,3411.4,3409.7,1.33813676]
[1732381116854,0.55,3411.3,3409.7,1.33813676]
[1732381119190,10.1331,3412.4,3409.9,1.1995]
[1732381119410,10.1331,3412.4,3410.1,1.1995]
[1732381119411,1.2431,3412.4,3410.1,1.1995]
[1732381119705,1.2431,3412.4,3410.3,1.1995]
[1732381119875,1.2431,3412.4,3410.4,0.38156761]
[1732381120075,1.2431,3412.4,3410.5,1.1995]
[1732381120293,1.2431,3412.4,3410.5,1.35760676]
[1732381120671,1.2431,3412.7,3410.5,1.35760676]
[1732381120871,0.55,3412.0,3410.5,1.35760676]
[1732381122206,0.55,3412.0,3410.5,1.1995]
[1732381123814,0.55,3412.0,3410.6,0.2921]
[1732381123978,0.55,3412.0,3410.7,1.1995]
[1732381124531,0.55,3412.0,3410.8,0.38156761]
[1732381124668,0.55,3412.0,3410.9,1.1995]
[1732381129091,3.1,3413.3,3410.9,1.4916]
[1732381129092,1.2707,3413.0,3410.9,1.4916]
[1732381129339,1.2707,3413.0,3411.1,1.1871]
[1732381129517,0.1,3413.8,3411.2,0.41088136]
[1732381129518,8.89,3413.7,3411.2,0.41088136]
[1732381129720,8.89,3413.7,3411.3,1.50850912]
[1732381129928,1.2707,3413.8,3411.5,0.2921]
[1732381130105,1.2707,3413.8,3411.0,0.14916]
[1732381130106,1.2707,3413.8,3411.7,0.2921]
[1732381130341,0.1,3414.8,3411.9,1.4792]
[1732381130342,1.2707,3414.5,3411.9,1.4792]
[1732381130511,1.2707,3414.5,3412.1,0.2921]
[1732381130737,1.2707,3414.5,3412.5,0.2921]
[1732381130941,1.07727882,3414.4,3412.6,1.4792]
[1732381131315,1.2707,3414.5,3412.6,1.4792]
[1732381131790,1.2707,3414.5,3412.7,1.1871]
[1732381131995,1.2707,3414.5,3412.8,1.1871]
[1732381133331,0.55,3414.4,3412.8,1.1871]
[1732381136421,0.55,3414.4,3412.8,1.60741083]
[1732381136740,0.55,3414.2,3412.9,1.2199]
[1732381136918,0.55,3414.2,3412.9,1.64021083]
[1732381137315,0.18207,3414.3,3413.0,1.2199]
[1732381137521,0.55,3414.7,3413.1,0.42031083]
[1732381137721,0.55,3414.7,3413.2,1.2199]
[1732381138847,3.55,3414.7,3413.2,1.2199]
[1732381139209,0.55,3414.5,3413.2,1.2199]
[1732381139411,0.55,3414.3,3413.2,1.2199]
[1732381139727,0.55,3414.5,3413.2,1.2199]
[1732381140621,3.0,3414.7,3413.2,1.2199]
[1732381140822,3.0,3414.7,3411.9,0.1]
[1732381140823,8.89,3415.6,3413.4,1.2199]
[1732381141054,1.2733,3415.7,3413.5,0.42031083]
[1732381141211,1.2733,3415.7,3413.6,1.2199]
[1732381142773,1.2733,3415.7,3413.7,0.42031083]
[1732381143076,1.2733,3415.7,3413.8,1.2199]
[1732381143764,1.2733,3415.7,3414.0,1.2199]
[1732381143950,1.2733,3415.7,3414.1,0.34639058]
[1732381144156,0.55,3415.4,3414.2,0.34639058]
[1732381144337,0.55,3415.4,3414.3,0.34639058]
[1732381144546,0.55,3415.4,3414.4,0.34639058]
[1732381144853,0.55,3415.4,3414.5,0.34637945]
[1732381145032,3.0,3415.9,3414.6,1.56627945]
[1732381145234,3.0,3415.9,3414.7,0.34646242]
[1732381145428,3.0,3415.9,3414.8,0.34646242]
[1732381145628,3.0,3416.0,3414.9,0.34646242]
[1732381145863,3.0,3416.0,3414.6,1.2199]
[1732381146065,3.0,3416.0,3414.7,0.34636583]
[1732381146266,3.0,3416.0,3414.8,0.34636583]
[1732381146465,0.55,3415.4,3414.9,0.34636583]
[1732381146672,0.55,3415.4,3415.0,0.34636583]
[1732381146871,0.55,3415.4,3415.1,0.34638022]
[1732381147073,1.2733,3416.2,3415.2,1.56628022]
[1732381147371,1.2733,3416.2,3415.3,0.34638022]
[1732381147580,1.2733,3416.2,3415.4,0.34638022]
[1732381147763,2.5928,3417.2,3415.4,0.34638022]
[1732381147764,8.89,3417.0,3415.4,1.68030824]
[1732381147968,8.89,3417.0,3415.4,1.97384938]
[1732381148162,1.219,3416.8,3415.4,1.52368022]
[1732381149314,1.219,3416.0,3413.1,0.02928316]
[1732381149483,1.219,3416.0,3412.6,0.81042673]
[1732381149813,1.219,3416.0,3413.2,0.41611423]
[1732381149970,1.219,3416.4,3413.4,0.2921]
[1732381150166,0.55,3415.4,3413.5,1.1493139]
[1732381150411,1.219,3416.4,3413.5,1.1493139]
[1732381150581,3.0,3416.6,3413.5,1.1493139]
[1732381151080,3.0,3416.6,3413.5,1.12002673]
[1732381151491,3.0,3416.6,3413.5,1.14930981]
[1732381151690,1.219,3416.0,3413.5,1.14930981]
[1732381152031,4.219,3416.6,3413.5,1.14930981]
[1732381152179,4.219,3416.6,3413.7,0.2921]
[1732381152386,0.55,3415.4,3414.0,1.1773]
[1732381152606,0.55,3415.4,3414.2,1.1773]
[1732381154120,1.219,3415.3,3414.2,1.1773]
[1732381154431,0.55,3415.2,3414.2,1.1773]
[1732381154725,0.55,3415.0,3414.2,1.1773]
[1732381159275,0.55,3415.0,3414.3,0.34784304]
[1732381159430,0.55,3415.0,3414.4,0.34784304]
[1732381159630,0.55,3415.0,3414.5,0.34784304]
[1732381159856,0.55,3415.0,3414.2,1.1773]
[1732381159857,0.55,3415.0,3414.6,0.34784304]
[1732381160063,0.55,3415.0,3414.7,0.34784304]
[1732381160265,0.55,3415.0,3414.8,0.34784304]
[1732381160423,0.55,3415.0,3414.9,0.34784304]
[1732381162646,0.55,3415.0,3414.2,1.1773]
[1732381163045,0.55,3414.8,3413.4,1.2386]
[1732381163245,0.55,3414.6,3413.4,1.2386]
[1732381163687,0.55,3414.4,3413.4,1.2386]
[1732381164914,0.55,3414.2,3412.6,1.2386]
[1732381165117,0.55,3414.0,3412.6,1.2386]
[1732381166713,0.55,3414.0,3412.8,1.2386]
[1732381166978,0.23665,3414.1,3412.8,1.2386]
[1732381167282,1.2665,3414.6,3412.8,1.66707916]
[1732381167519,1.2665,3414.6,3412.9,0.8917]
[1732381168083,1.2665,3414.6,3412.9,1.32017916]
[1732381168318,0.55,3414.5,3412.9,0.8917]
[1732381168582,0.55,3414.3,3412.9,0.8917]
[1732381169594,0.9082,3414.2,3412.9,0.8917]
[1732381169794,0.55,3414.1,3412.9,0.8917]
[1732381172726,0.55,3413.9,3411.8,0.8917]
[1732381172971,0.55,3413.7,3411.8,0.8917]
[1732381173140,0.9082,3413.4,3411.8,0.8917]
[1732381173334,0.55,3413.3,3411.8,0.8917]
[1732381173575,0.55,3413.1,3411.8,0.8917]
[1732381176765,0.55,3412.9,3411.8,0.8917]
[1732381180051,3.9082,3413.3,3411.8,0.8917]